[Event "*** Titled Tuesday Blitz"]
[Site "Chess.com"]
[Date "2021.03.30"]
[Round "11"]
[White "GMHess"]
[Black "Kretov_Evgenij"]
[Result "0-1"]
[WhiteElo "2736"]
[BlackElo "2585"]
[TimeControl "180+1"]
[EndTime "12:08:47 PDT"]
[Termination "Kretov_Evgenij won on time"]

1. b3 {[%clk 0:03:00.9]} 1... c5 {[%clk 0:02:59.1]} 2. Bb2 {[%clk 0:03:01.8]}
2... b6 {[%clk 0:02:59.5]} 3. a4 {[%clk 0:03:01.6]} 3... Nc6 {[%clk 0:02:58.8]}
4. g3 {[%clk 0:03:01]} 4... Bb7 {[%clk 0:02:58.5]} 5. Bg2 {[%clk 0:03:01.9]}
5... Nf6 {[%clk 0:02:58.8]} 6. e3 {[%clk 0:03:02.2]} 6... e6 {[%clk 0:02:58.8]}
7. Ne2 {[%clk 0:03:02.8]} 7... Be7 {[%clk 0:02:57.7]} 8. O-O {[%clk 0:03:03.3]}
8... O-O {[%clk 0:02:57.7]} 9. d4 {[%clk 0:03:02.3]} 9... cxd4 {[%clk
0:02:54.3]} 10. Nxd4 {[%clk 0:03:03.2]} 10... Rc8 {[%clk 0:02:53.2]} 11. c4
{[%clk 0:03:01.5]} 11... a6 {[%clk 0:02:49.6]} 12. Nc3 {[%clk 0:02:58]} 12...
Qc7 {[%clk 0:02:49.6]} 13. Rc1 {[%clk 0:02:56.5]} 13... Qb8 {[%clk 0:02:49.7]}
14. e4 {[%clk 0:02:43.2]} 14... Rfd8 {[%clk 0:02:47.5]} 15. Nxc6 {[%clk
0:02:32]} 15... Bxc6 {[%clk 0:02:43.7]} 16. Qe2 {[%clk 0:02:28.6]} 16... d6
{[%clk 0:02:38.3]} 17. f4 {[%clk 0:02:20.9]} 17... Nd7 {[%clk 0:02:35.1]} 18. g4
{[%clk 0:01:51.2]} 18... Nc5 {[%clk 0:02:31.4]} 19. Qc2 {[%clk 0:01:35.5]} 19...
b5 {[%clk 0:02:13.9]} 20. axb5 {[%clk 0:01:32]} 20... axb5 {[%clk 0:02:13.6]}
21. cxb5 {[%clk 0:01:23.4]} 21... Bxb5 {[%clk 0:02:12]} 22. Nxb5 {[%clk
0:01:24.3]} 22... Qxb5 {[%clk 0:02:11.5]} 23. Rf3 {[%clk 0:01:16.8]} 23... Rb8
{[%clk 0:02:08]} 24. Bf1 {[%clk 0:00:38.7]} 24... Qb4 {[%clk 0:02:03.9]} 25. Bc4
{[%clk 0:00:37.3]} 25... d5 {[%clk 0:01:57.8]} 26. exd5 {[%clk 0:00:36]} 26...
exd5 {[%clk 0:01:57.9]} 27. Bd3 {[%clk 0:00:21.9]} 27... g6 {[%clk 0:01:32.9]}
28. f5 {[%clk 0:00:14.2]} 28... Nxd3 {[%clk 0:01:25.9]} 29. Qxd3 {[%clk
0:00:13.7]} 29... Qxg4+ {[%clk 0:01:24.5]} 30. Rg3 {[%clk 0:00:14]} 30... Qe4
{[%clk 0:01:23.1]} 31. Qf1 {[%clk 0:00:05.4]} 31... Rdc8 {[%clk 0:01:16]} 32.
Rg2 {[%clk 0:00:03.3]} 32... Rxc1 {[%clk 0:01:13.2]} 33. Bxc1 {[%clk 0:00:03.1]}
33... Bc5+ {[%clk 0:01:10.9]} 34. Kh1 {[%clk 0:00:03.2]} 34... Rxb3 {[%clk
0:01:08.4]} 35. Qe2 {[%clk 0:00:02.4]} 35... Qxe2 {[%clk 0:01:05]} 36. Rxe2
{[%clk 0:00:03.3]} 36... Rb1 {[%clk 0:01:03.8]} 37. Re8+ {[%clk 0:00:03]} 37...
Kg7 {[%clk 0:01:03.6]} 38. Re1 {[%clk 0:00:03.6]} 38... Kg8 {[%clk 0:00:54.6]}
39. Re8+ {[%clk 0:00:03.2]} 39... Bf8 {[%clk 0:00:54.3]} 40. Rc8 {[%clk
0:00:03.5]} 40... f6 {[%clk 0:00:45.1]} 41. Kg2 {[%clk 0:00:03.3]} 41... Kf7
{[%clk 0:00:42.4]} 42. Rc7+ {[%clk 0:00:03.8]} 42... Ke8 {[%clk 0:00:42.3]} 43.
Be3 {[%clk 0:00:02.5]} 43... Be7 {[%clk 0:00:39.3]} 44. Bd4 {[%clk 0:00:02.4]}
44... Rd1 {[%clk 0:00:33.2]} 45. Be3 {[%clk 0:00:02.4]} 45... d4 {[%clk
0:00:31.2]} 46. Bf2 {[%clk 0:00:02.8]} 46... d3 {[%clk 0:00:26]} 47. Kg3 {[%clk
0:00:03.2]} 47... Bd6+ {[%clk 0:00:25.3]} 0-1

[Event "*** Titled Tuesday Blitz"]
[Site "Chess.com"]
[Date "2021.03.30"]
[Round "11"]
[White "volunteers1998"]
[Black "PowerThinking2650"]
[Result "1/2-1/2"]
[WhiteElo "2214"]
[BlackElo "2421"]
[TimeControl "180+1"]
[EndTime "12:08:47 PDT"]
[Termination "Game drawn by agreement"]

1. e4 {[%clk 0:03:00.9]} 1... e5 {[%clk 0:02:59.4]} 2. Nc3 {[%clk 0:02:59.6]}
2... Nf6 {[%clk 0:02:58.3]} 3. Bc4 {[%clk 0:02:58.6]} 3... Nc6 {[%clk
0:02:56.9]} 4. d3 {[%clk 0:02:56.3]} 4... Na5 {[%clk 0:02:56.7]} 5. Bb3 {[%clk
0:02:53.2]} 5... Nxb3 {[%clk 0:02:56.4]} 6. axb3 {[%clk 0:02:52.4]} 6... Bc5
{[%clk 0:02:55]} 7. f4 {[%clk 0:02:46.2]} 7... d6 {[%clk 0:02:49.9]} 8. Nf3
{[%clk 0:02:44.1]} 8... a6 {[%clk 0:02:42.6]} 9. Qe2 {[%clk 0:02:41.3]} 9... Ng4
{[%clk 0:02:07.4]} 10. Rf1 {[%clk 0:02:35]} 10... c6 {[%clk 0:01:56.2]} 11. h3
{[%clk 0:02:32.3]} 11... Nf6 {[%clk 0:01:56.1]} 12. fxe5 {[%clk 0:02:29.2]}
12... dxe5 {[%clk 0:01:56.5]} 13. Nxe5 {[%clk 0:02:27.3]} 13... Be6 {[%clk
0:01:51.2]} 14. Be3 {[%clk 0:02:23.3]} 14... Bxe3 {[%clk 0:01:45.5]} 15. Qxe3
{[%clk 0:02:22.3]} 15... O-O {[%clk 0:01:45.7]} 16. O-O-O {[%clk 0:02:13.4]}
16... Re8 {[%clk 0:01:41.3]} 17. Nf3 {[%clk 0:02:02.1]} 17... b5 {[%clk
0:01:38.6]} 18. Kb1 {[%clk 0:01:56.1]} 18... a5 {[%clk 0:01:38.7]} 19. Ng5
{[%clk 0:01:43.9]} 19... a4 {[%clk 0:01:35.2]} 20. Nxe6 {[%clk 0:01:40.7]} 20...
Rxe6 {[%clk 0:01:31.8]} 21. bxa4 {[%clk 0:01:34.2]} 21... b4 {[%clk 0:01:30.5]}
22. Ne2 {[%clk 0:01:31.9]} 22... Rxa4 {[%clk 0:01:22]} 23. Rf5 {[%clk
0:01:28.2]} 23... Qa8 {[%clk 0:01:14.7]} 24. Kc1 {[%clk 0:01:24.9]} 24... Ra1+
{[%clk 0:01:09.5]} 25. Kd2 {[%clk 0:01:23.2]} 25... Nd5 {[%clk 0:00:52.4]} 26.
Rxa1 {[%clk 0:01:18.5]} 26... Qxa1 {[%clk 0:00:50.9]} 27. Qc5 {[%clk 0:01:10.4]}
27... Ne7 {[%clk 0:00:40.4]} 28. Qxb4 {[%clk 0:01:06.7]} 28... g6 {[%clk
0:00:29.4]} 29. Qa5 {[%clk 0:00:59.8]} 29... Qxb2 {[%clk 0:00:25.1]} 30. Rf2
{[%clk 0:00:55.1]} 30... Qe5 {[%clk 0:00:21.3]} 31. Qxe5 {[%clk 0:00:51.6]}
31... Rxe5 {[%clk 0:00:21.7]} 32. Ng3 {[%clk 0:00:48.3]} 32... c5 {[%clk
0:00:19.9]} 33. c3 {[%clk 0:00:43.5]} 33... Kg7 {[%clk 0:00:20]} 34. d4 {[%clk
0:00:38.2]} 34... cxd4 {[%clk 0:00:20.4]} 35. cxd4 {[%clk 0:00:37.9]} 35... Ra5
{[%clk 0:00:21.2]} 36. Ne2 {[%clk 0:00:33.3]} 36... Ra3 {[%clk 0:00:19.8]} 37.
Rf3 {[%clk 0:00:31.6]} 37... Ra2+ {[%clk 0:00:19.3]} 38. Kd3 {[%clk 0:00:30.3]}
38... Nc6 {[%clk 0:00:19.3]} 39. g4 {[%clk 0:00:25]} 39... Rxe2 {[%clk
0:00:18.8]} 40. Kxe2 {[%clk 0:00:23.8]} 40... Nxd4+ {[%clk 0:00:19.1]} 41. Ke3
{[%clk 0:00:24.1]} 41... Nxf3 {[%clk 0:00:19.2]} 42. Kxf3 {[%clk 0:00:24.6]}
42... Kf6 {[%clk 0:00:19.3]} 43. h4 {[%clk 0:00:21.9]} 43... Ke5 {[%clk
0:00:18.2]} 44. Ke3 {[%clk 0:00:21.8]} 44... f6 {[%clk 0:00:17.8]} 45. Kf3
{[%clk 0:00:20.9]} 45... h6 {[%clk 0:00:17.6]} 46. h5 {[%clk 0:00:19.4]} 46...
gxh5 {[%clk 0:00:16.4]} 47. gxh5 {[%clk 0:00:18.6]} 47... f5 {[%clk 0:00:17.3]}
48. exf5 {[%clk 0:00:17.4]} 48... Kxf5 {[%clk 0:00:18.2]} 49. Kg3 {[%clk
0:00:17.2]} 49... Kg5 {[%clk 0:00:19.1]} 50. Kh3 {[%clk 0:00:17.2]} 50... Kxh5
{[%clk 0:00:20]} 51. Kg3 {[%clk 0:00:16.9]} 51... Kg5 {[%clk 0:00:20.8]} 52. Kh3
{[%clk 0:00:17.2]} 52... h5 {[%clk 0:00:20.7]} 53. Kg3 {[%clk 0:00:17.5]} 53...
h4+ {[%clk 0:00:21.1]} 54. Kh3 {[%clk 0:00:18]} 54... Kh5 {[%clk 0:00:20.9]}
1/2-1/2

[Event "*** Titled Tuesday Blitz"]
[Site "Chess.com"]
[Date "2021.03.30"]
[Round "11"]
[White "AEMEffi"]
[Black "slowdgehammer"]
[Result "0-1"]
[WhiteElo "2257"]
[BlackElo "2367"]
[TimeControl "180+1"]
[EndTime "12:08:49 PDT"]
[Termination "slowdgehammer won on time"]

1. d4 {[%clk 0:03:00.9]} 1... Nf6 {[%clk 0:02:59.4]} 2. c4 {[%clk 0:03:01.3]}
2... e6 {[%clk 0:02:59.4]} 3. g3 {[%clk 0:03:01.6]} 3... d5 {[%clk 0:02:59.6]}
4. Nf3 {[%clk 0:03:02.1]} 4... dxc4 {[%clk 0:02:59.7]} 5. Bg2 {[%clk 0:03:02.5]}
5... a6 {[%clk 0:02:59.7]} 6. a4 {[%clk 0:03:00.5]} 6... Nbd7 {[%clk 0:02:59]}
7. Qc2 {[%clk 0:02:59.4]} 7... Rb8 {[%clk 0:02:58.6]} 8. Qxc4 {[%clk 0:02:58.9]}
8... b5 {[%clk 0:02:59.3]} 9. Qc2 {[%clk 0:02:56.3]} 9... Bb7 {[%clk 0:02:59.3]}
10. O-O {[%clk 0:02:56.7]} 10... Be7 {[%clk 0:02:59]} 11. Bf4 {[%clk 0:02:55.5]}
11... Nd5 {[%clk 0:02:57.3]} 12. e4 {[%clk 0:02:47.9]} 12... Nxf4 {[%clk
0:02:56.8]} 13. gxf4 {[%clk 0:02:48.8]} 13... Nf6 {[%clk 0:02:50.2]} 14. Nbd2
{[%clk 0:02:47.6]} 14... O-O {[%clk 0:02:43.5]} 15. axb5 {[%clk 0:02:43.9]}
15... axb5 {[%clk 0:02:43.1]} 16. Ra7 {[%clk 0:02:32.5]} 16... Nh5 {[%clk
0:02:35.8]} 17. f5 {[%clk 0:02:13.7]} 17... Nf4 {[%clk 0:02:33.6]} 18. Nb3
{[%clk 0:02:04.4]} 18... Nxg2 {[%clk 0:02:25.4]} 19. Kxg2 {[%clk 0:02:05.3]}
19... exf5 {[%clk 0:02:25.7]} 20. exf5 {[%clk 0:01:54.6]} 20... Bd6 {[%clk
0:02:22]} 21. Rd1 {[%clk 0:01:46.7]} 21... Bd5 {[%clk 0:02:12.5]} 22. Qd3 {[%clk
0:01:17]} 22... Re8 {[%clk 0:02:01.6]} 23. Nc5 {[%clk 0:01:09.2]} 23... Qh4
{[%clk 0:01:28.8]} 24. h3 {[%clk 0:00:55.6]} 24... Rbd8 {[%clk 0:01:23.3]} 25.
Nb7 {[%clk 0:00:50.6]} 25... Qf4 {[%clk 0:00:56.5]} 26. Nxd6 {[%clk 0:00:49.2]}
26... Rxd6 {[%clk 0:00:56.2]} 27. Rxc7 {[%clk 0:00:40.4]} 27... Rf6 {[%clk
0:00:52]} 28. Re1 {[%clk 0:00:33.3]} 28... Rd8 {[%clk 0:00:35.9]} 29. Re5 {[%clk
0:00:20.2]} 29... g6 {[%clk 0:00:28.1]} 30. Qe3 {[%clk 0:00:17.4]} 30... Rxf5
{[%clk 0:00:20.6]} 31. Rxf5 {[%clk 0:00:09.7]} 31... Qxf5 {[%clk 0:00:18.7]} 32.
Kg3 {[%clk 0:00:09.6]} 32... Bxf3 {[%clk 0:00:09.1]} 33. Qxf3 {[%clk 0:00:08.1]}
33... Qxf3+ {[%clk 0:00:10]} 34. Kxf3 {[%clk 0:00:07.8]} 34... Rxd4 {[%clk
0:00:10.9]} 35. Rc5 {[%clk 0:00:03.5]} 35... Rb4 {[%clk 0:00:11.2]} 36. Rc2
{[%clk 0:00:02.7]} 36... Kg7 {[%clk 0:00:11.3]} 37. Kg3 {[%clk 0:00:02.5]} 37...
Kf6 {[%clk 0:00:11.6]} 38. f3 {[%clk 0:00:03.4]} 38... h5 {[%clk 0:00:11.6]} 39.
h4 {[%clk 0:00:03.7]} 39... Kf5 {[%clk 0:00:11.2]} 40. Re2 {[%clk 0:00:03.7]}
40... f6 {[%clk 0:00:11.1]} 41. Rd2 {[%clk 0:00:01.5]} 41... Rb3 {[%clk
0:00:10.6]} 0-1

[Event "*** Titled Tuesday Blitz"]
[Site "Chess.com"]
[Date "2021.03.30"]
[Round "11"]
[White "FGHSMN"]
[Black "bsnsun"]
[Result "1-0"]
[WhiteElo "2648"]
[BlackElo "2473"]
[TimeControl "180+1"]
[EndTime "12:08:50 PDT"]
[Termination "FGHSMN won by resignation"]

1. e4 {[%clk 0:03:00.9]} 1... d6 {[%clk 0:02:59.4]} 2. d4 {[%clk 0:03:00.6]}
2... g6 {[%clk 0:02:59.8]} 3. Nc3 {[%clk 0:02:58.7]} 3... Bg7 {[%clk 0:03:00.3]}
4. f4 {[%clk 0:02:54]} 4... a6 {[%clk 0:02:59.6]} 5. Nf3 {[%clk 0:02:53.9]} 5...
b5 {[%clk 0:02:59.7]} 6. Bd3 {[%clk 0:02:52.9]} 6... Nd7 {[%clk 0:03:00]} 7. e5
{[%clk 0:02:50.4]} 7... Bb7 {[%clk 0:02:58.7]} 8. e6 {[%clk 0:02:41.5]} 8...
fxe6 {[%clk 0:02:57.1]} 9. Ng5 {[%clk 0:02:39.3]} 9... Nf8 {[%clk 0:02:56.8]}
10. Qe2 {[%clk 0:02:34.7]} 10... Qd7 {[%clk 0:02:56.6]} 11. Be3 {[%clk
0:02:31.6]} 11... Nf6 {[%clk 0:02:55.4]} 12. O-O-O {[%clk 0:02:29.3]} 12... h6
{[%clk 0:02:51.9]} 13. Nge4 {[%clk 0:02:28.3]} 13... O-O-O {[%clk 0:02:50.4]}
14. Nxf6 {[%clk 0:02:10.7]} 14... exf6 {[%clk 0:02:49.3]} 15. Be4 {[%clk
0:01:45.4]} 15... Bxe4 {[%clk 0:02:36.3]} 16. Nxe4 {[%clk 0:01:46.3]} 16... f5
{[%clk 0:02:36.8]} 17. Nc3 {[%clk 0:01:45.5]} 17... Nh7 {[%clk 0:02:34]} 18. Qf3
{[%clk 0:01:39.5]} 18... d5 {[%clk 0:02:33]} 19. g4 {[%clk 0:01:32.9]} 19... Nf6
{[%clk 0:02:32.1]} 20. gxf5 {[%clk 0:01:32.4]} 20... gxf5 {[%clk 0:02:29.1]} 21.
Rhg1 {[%clk 0:01:33]} 21... Ne4 {[%clk 0:02:28.7]} 22. Nxe4 {[%clk 0:01:32.4]}
22... fxe4 {[%clk 0:02:22.3]} 23. Qh3 {[%clk 0:01:31.4]} 23... Rhg8 {[%clk
0:02:18.2]} 24. Kb1 {[%clk 0:01:26.2]} 24... Kb7 {[%clk 0:02:12.6]} 25. Rg6
{[%clk 0:01:23.8]} 25... Rge8 {[%clk 0:01:57.4]} 26. Rdg1 {[%clk 0:01:20.7]}
26... Bf8 {[%clk 0:01:57.9]} 27. Rf6 {[%clk 0:01:12.7]} 27... Bg7 {[%clk
0:01:40.9]} 28. Rfg6 {[%clk 0:01:12.4]} 28... Bf8 {[%clk 0:01:41.5]} 29. Rg8
{[%clk 0:01:06.4]} 29... Qf7 {[%clk 0:01:34.1]} 30. R8g6 {[%clk 0:01:06.1]}
30... Bd6 {[%clk 0:01:27.7]} 31. Rxh6 {[%clk 0:00:57.4]} 31... Rg8 {[%clk
0:01:27.6]} 32. Rf1 {[%clk 0:00:53.6]} 32... Rde8 {[%clk 0:01:21.5]} 33. a3
{[%clk 0:00:50.4]} 33... Rg7 {[%clk 0:00:57.5]} 34. f5 {[%clk 0:00:46.6]} 34...
exf5 {[%clk 0:00:56.9]} 35. Rxf5 {[%clk 0:00:45.9]} 35... Qg8 {[%clk 0:00:38.3]}
36. Qh5 {[%clk 0:00:26.3]} 36... Rg2 {[%clk 0:00:30]} 37. Rf7 {[%clk 0:00:22]}
37... Kc6 {[%clk 0:00:22.9]} 38. Qf5 {[%clk 0:00:17.5]} 38... Qg4 {[%clk
0:00:20.7]} 39. Rxd6+ {[%clk 0:00:14.7]} 39... cxd6 {[%clk 0:00:18.7]} 40. Qh7
{[%clk 0:00:14.1]} 40... Rc8 {[%clk 0:00:11.8]} 41. Ra7 {[%clk 0:00:13.2]} 41...
Qg7 {[%clk 0:00:05.6]} 42. Rxg7 {[%clk 0:00:12.2]} 1-0

[Event "*** Titled Tuesday Blitz"]
[Site "Chess.com"]
[Date "2021.03.30"]
[Round "11"]
[White "Lyschko"]
[Black "chessmachine14"]
[Result "1/2-1/2"]
[WhiteElo "2249"]
[BlackElo "2309"]
[TimeControl "180+1"]
[EndTime "12:08:50 PDT"]
[Termination "Game drawn by repetition"]

1. c4 {[%clk 0:03:00.9]} 1... e5 {[%clk 0:02:57]} 2. Nc3 {[%clk 0:03:00.1]} 2...
Nf6 {[%clk 0:02:54.3]} 3. Nf3 {[%clk 0:03:00]} 3... Nc6 {[%clk 0:02:51]} 4. e3
{[%clk 0:03:00]} 4... Be7 {[%clk 0:02:48.6]} 5. d4 {[%clk 0:02:58.8]} 5... exd4
{[%clk 0:02:47.4]} 6. Nxd4 {[%clk 0:02:58.7]} 6... O-O {[%clk 0:02:46.6]} 7.
Nxc6 {[%clk 0:02:55.1]} 7... dxc6 {[%clk 0:02:45.8]} 8. Qxd8 {[%clk 0:02:50.4]}
8... Rxd8 {[%clk 0:02:46.7]} 9. Be2 {[%clk 0:02:50.1]} 9... Be6 {[%clk
0:02:47.1]} 10. O-O {[%clk 0:02:47.9]} 10... Nd7 {[%clk 0:02:39.5]} 11. b3
{[%clk 0:02:35.2]} 11... Bf6 {[%clk 0:02:38.8]} 12. Bb2 {[%clk 0:02:34]} 12...
a5 {[%clk 0:02:39.2]} 13. Rfd1 {[%clk 0:02:27.4]} 13... Nc5 {[%clk 0:02:38.9]}
14. f3 {[%clk 0:02:12.7]} 14... a4 {[%clk 0:02:35.8]} 15. Nxa4 {[%clk
0:01:54.9]} 15... Nxa4 {[%clk 0:02:22.8]} 16. Bxf6 {[%clk 0:01:54.4]} 16...
Rxd1+ {[%clk 0:02:19.9]} 17. Rxd1 {[%clk 0:01:51.8]} 17... gxf6 {[%clk
0:02:20.8]} 18. bxa4 {[%clk 0:01:50.5]} 18... Rxa4 {[%clk 0:02:03.5]} 19. Rd2
{[%clk 0:01:36.2]} 19... Ra5 {[%clk 0:01:32.1]} 20. e4 {[%clk 0:01:16.5]} 20...
b5 {[%clk 0:01:27.7]} 21. Rc2 {[%clk 0:01:07.3]} 21... b4 {[%clk 0:00:20.2]} 22.
Kf2 {[%clk 0:00:59.8]} 22... Kf8 {[%clk 0:00:19.6]} 23. Ke3 {[%clk 0:00:59.6]}
23... Ke7 {[%clk 0:00:19.9]} 24. f4 {[%clk 0:00:58.9]} 24... Kd6 {[%clk
0:00:19]} 25. Kd4 {[%clk 0:00:55.7]} 25... c5+ {[%clk 0:00:18.5]} 26. Ke3 {[%clk
0:00:55.8]} 26... Ra3+ {[%clk 0:00:16.6]} 27. Kd2 {[%clk 0:00:50]} 27... Bd7
{[%clk 0:00:16.6]} 28. Bd3 {[%clk 0:00:48.2]} 28... Ba4 {[%clk 0:00:16.3]} 29.
Rb2 {[%clk 0:00:46.6]} 29... Rc3 {[%clk 0:00:15.9]} 30. g3 {[%clk 0:00:42.4]}
30... h6 {[%clk 0:00:15]} 31. h3 {[%clk 0:00:38.7]} 31... Bc6 {[%clk 0:00:12.6]}
32. Rc2 {[%clk 0:00:34.7]} 32... Ra3 {[%clk 0:00:11.9]} 33. Rb2 {[%clk
0:00:34.6]} 33... Bb7 {[%clk 0:00:11.4]} 34. Kc2 {[%clk 0:00:28.8]} 34... Ba6
{[%clk 0:00:11.1]} 35. Kd2 {[%clk 0:00:28.2]} 35... Rc3 {[%clk 0:00:09.7]} 36.
Rc2 {[%clk 0:00:28.2]} 36... Ra3 {[%clk 0:00:07.6]} 37. Ke2 {[%clk 0:00:24.1]}
37... h5 {[%clk 0:00:06.9]} 38. Kd2 {[%clk 0:00:23.4]} 38... Bc8 {[%clk
0:00:06.1]} 39. h4 {[%clk 0:00:20.4]} 39... Be6 {[%clk 0:00:05.1]} 40. Rb2
{[%clk 0:00:14.6]} 40... Rc3 {[%clk 0:00:04.6]} 41. Rc2 {[%clk 0:00:14.5]} 41...
Ra3 {[%clk 0:00:04]} 42. Rb2 {[%clk 0:00:14.6]} 42... Kc6 {[%clk 0:00:04.3]} 43.
Rc2 {[%clk 0:00:14.3]} 43... Kd6 {[%clk 0:00:04.1]} 1/2-1/2

[Event "*** Titled Tuesday Blitz"]
[Site "Chess.com"]
[Date "2021.03.30"]
[Round "11"]
[White "zurzan"]
[Black "ErikRonka"]
[Result "0-1"]
[WhiteElo "2006"]
[BlackElo "2408"]
[TimeControl "180+1"]
[EndTime "12:08:53 PDT"]
[Termination "ErikRonka won on time"]

1. f4 {[%clk 0:03:00.9]} 1... d5 {[%clk 0:02:58.8]} 2. Nf3 {[%clk 0:03:00.8]}
2... Nf6 {[%clk 0:02:59]} 3. g3 {[%clk 0:03:01.2]} 3... g6 {[%clk 0:02:59.4]} 4.
Bg2 {[%clk 0:03:02.1]} 4... Bg7 {[%clk 0:02:59.9]} 5. O-O {[%clk 0:03:02.8]}
5... O-O {[%clk 0:03:00.8]} 6. d3 {[%clk 0:03:03.5]} 6... c5 {[%clk 0:03:01.2]}
7. c3 {[%clk 0:03:04.4]} 7... Nc6 {[%clk 0:03:01.4]} 8. Qc2 {[%clk 0:03:05]}
8... d4 {[%clk 0:02:58.3]} 9. h3 {[%clk 0:03:02.7]} 9... Nd5 {[%clk 0:02:49.7]}
10. a4 {[%clk 0:02:26.6]} 10... b6 {[%clk 0:02:42.1]} 11. Bd2 {[%clk 0:02:19.9]}
11... Bb7 {[%clk 0:02:41.7]} 12. Na3 {[%clk 0:02:16.5]} 12... Rc8 {[%clk
0:02:40.6]} 13. Nc4 {[%clk 0:02:12.2]} 13... Qc7 {[%clk 0:02:30]} 14. Rac1
{[%clk 0:02:01]} 14... Rfd8 {[%clk 0:02:29.3]} 15. e4 {[%clk 0:01:25.2]} 15...
dxe3 {[%clk 0:02:27.6]} 16. Nxe3 {[%clk 0:01:24.9]} 16... Nxe3 {[%clk
0:02:20.7]} 17. Bxe3 {[%clk 0:01:24.9]} 17... Ba6 {[%clk 0:02:20.6]} 18. Rfd1
{[%clk 0:01:23.7]} 18... e5 {[%clk 0:02:14.6]} 19. fxe5 {[%clk 0:01:16.7]} 19...
Nxe5 {[%clk 0:02:15.5]} 20. Nxe5 {[%clk 0:01:16.1]} 20... Bxe5 {[%clk
0:02:14.6]} 21. Bf2 {[%clk 0:01:12.6]} 21... Bxg3 {[%clk 0:02:12]} 22. d4 {[%clk
0:01:02.1]} 22... Bf4 {[%clk 0:01:57.4]} 23. Rb1 {[%clk 0:00:34.9]} 23... Bb7
{[%clk 0:01:41.4]} 24. d5 {[%clk 0:00:31.8]} 24... Bh2+ {[%clk 0:01:27.3]} 25.
Kh1 {[%clk 0:00:31]} 25... Bg3 {[%clk 0:01:27.5]} 26. c4 {[%clk 0:00:29.7]}
26... Re8 {[%clk 0:01:22.2]} 27. Rf1 {[%clk 0:00:25.1]} 27... Be5 {[%clk
0:01:18.8]} 28. Rbe1 {[%clk 0:00:18.9]} 28... Rcd8 {[%clk 0:01:14.9]} 29. b3
{[%clk 0:00:17.7]} 29... Rd7 {[%clk 0:01:09.8]} 30. Bg1 {[%clk 0:00:17.7]} 30...
Rde7 {[%clk 0:01:08.8]} 31. Re2 {[%clk 0:00:17.1]} 31... Bc8 {[%clk 0:01:06.7]}
32. Rfe1 {[%clk 0:00:17]} 32... Qd6 {[%clk 0:01:06.9]} 33. Qd2 {[%clk
0:00:12.1]} 33... Bf4 {[%clk 0:00:55.4]} 34. Qd3 {[%clk 0:00:12.1]} 34... Rxe2
{[%clk 0:00:50.9]} 35. Rxe2 {[%clk 0:00:13]} 35... Rxe2 {[%clk 0:00:50.5]} 36.
Qxe2 {[%clk 0:00:13.9]} 36... Be5 {[%clk 0:00:49.3]} 37. Bf2 {[%clk 0:00:09.4]}
37... Bf5 {[%clk 0:00:46.2]} 38. Kg1 {[%clk 0:00:07.6]} 38... Kg7 {[%clk
0:00:46.1]} 39. Kf1 {[%clk 0:00:07.9]} 39... Bf6 {[%clk 0:00:44.1]} 40. Qf3
{[%clk 0:00:07.1]} 40... Qe5 {[%clk 0:00:42.7]} 41. Be3 {[%clk 0:00:06.7]} 41...
Bd3+ {[%clk 0:00:40.8]} 42. Kf2 {[%clk 0:00:06.3]} 42... Bc2 {[%clk 0:00:38.7]}
43. Bd2 {[%clk 0:00:05]} 43... Qd4+ {[%clk 0:00:28.4]} 44. Kf1 {[%clk
0:00:05.4]} 44... Bd3+ {[%clk 0:00:23.6]} 45. Ke1 {[%clk 0:00:04.1]} 45... Be5
{[%clk 0:00:23.6]} 46. Qe3 {[%clk 0:00:02.4]} 46... Qa1+ {[%clk 0:00:20.5]} 47.
Kf2 {[%clk 0:00:02.1]} 47... Bd4 {[%clk 0:00:20.5]} 0-1

[Event "*** Titled Tuesday Blitz"]
[Site "Chess.com"]
[Date "2021.03.30"]
[Round "11"]
[White "I_Enchev"]
[Black "vinniethepooh"]
[Result "1-0"]
[WhiteElo "2557"]
[BlackElo "2661"]
[TimeControl "180+1"]
[EndTime "12:08:54 PDT"]
[Termination "I_Enchev won by checkmate"]

1. d4 {[%clk 0:03:00.9]} 1... Nf6 {[%clk 0:03:00]} 2. c4 {[%clk 0:03:01.3]} 2...
e6 {[%clk 0:03:00.5]} 3. Nc3 {[%clk 0:03:01.4]} 3... Bb4 {[%clk 0:03:00.2]} 4.
Qc2 {[%clk 0:03:01.8]} 4... d6 {[%clk 0:02:59.6]} 5. Nf3 {[%clk 0:03:01]} 5...
O-O {[%clk 0:02:59]} 6. Bd2 {[%clk 0:03:01.1]} 6... b6 {[%clk 0:02:58.2]} 7. g3
{[%clk 0:03:01.1]} 7... Bb7 {[%clk 0:02:57.9]} 8. Bg2 {[%clk 0:03:01.2]} 8... c5
{[%clk 0:02:58.5]} 9. dxc5 {[%clk 0:03:00.2]} 9... dxc5 {[%clk 0:02:53.4]} 10.
O-O {[%clk 0:02:59.4]} 10... Nbd7 {[%clk 0:02:48.2]} 11. Rad1 {[%clk 0:02:57.1]}
11... Qe7 {[%clk 0:02:43.4]} 12. a3 {[%clk 0:02:52.7]} 12... Ba5 {[%clk
0:02:25.5]} 13. Nh4 {[%clk 0:02:31.7]} 13... Bxg2 {[%clk 0:02:23.7]} 14. Nxg2
{[%clk 0:02:32.6]} 14... Ne5 {[%clk 0:02:21.1]} 15. b3 {[%clk 0:02:27.6]} 15...
Rfd8 {[%clk 0:02:14.7]} 16. Bc1 {[%clk 0:02:24.4]} 16... Nc6 {[%clk 0:02:10.7]}
17. e3 {[%clk 0:02:23.1]} 17... Bxc3 {[%clk 0:01:58.8]} 18. Qxc3 {[%clk
0:02:22.1]} 18... Rxd1 {[%clk 0:01:59.4]} 19. Rxd1 {[%clk 0:02:21.2]} 19... Rd8
{[%clk 0:02:00.3]} 20. Qc2 {[%clk 0:02:12]} 20... Rd6 {[%clk 0:01:51.6]} 21. Bb2
{[%clk 0:02:10.2]} 21... e5 {[%clk 0:01:51.5]} 22. Nh4 {[%clk 0:02:01.1]} 22...
g6 {[%clk 0:01:44.9]} 23. Nf3 {[%clk 0:02:00.3]} 23... Qd8 {[%clk 0:01:38.1]}
24. Rxd6 {[%clk 0:01:58.1]} 24... Qxd6 {[%clk 0:01:39]} 25. Nd2 {[%clk
0:01:55.8]} 25... h5 {[%clk 0:01:13.4]} 26. f3 {[%clk 0:01:53.3]} 26... Qd7
{[%clk 0:01:05.5]} 27. Kg2 {[%clk 0:01:49]} 27... h4 {[%clk 0:00:39.2]} 28. g4
{[%clk 0:01:46.1]} 28... Nh7 {[%clk 0:00:36]} 29. Ne4 {[%clk 0:01:41.1]} 29...
f5 {[%clk 0:00:35.3]} 30. Nf2 {[%clk 0:01:37.3]} 30... Ng5 {[%clk 0:00:34.5]}
31. h3 {[%clk 0:01:26.1]} 31... Qb7 {[%clk 0:00:28.9]} 32. Qd1 {[%clk
0:01:15.6]} 32... Ne7 {[%clk 0:00:23.8]} 33. Bxe5 {[%clk 0:01:10.9]} 33... Kf7
{[%clk 0:00:23.9]} 34. Bf4 {[%clk 0:01:02.6]} 34... Ne6 {[%clk 0:00:23.5]} 35.
Qd6 {[%clk 0:01:00.6]} 35... Qc6 {[%clk 0:00:21.1]} 36. Qe5 {[%clk 0:00:55.6]}
36... Nxf4+ {[%clk 0:00:19.6]} 37. Qxf4 {[%clk 0:00:54.6]} 37... Qd7 {[%clk
0:00:18.4]} 38. e4 {[%clk 0:00:53.3]} 38... Qd4 {[%clk 0:00:10.2]} 39. gxf5
{[%clk 0:00:52.1]} 39... Nxf5 {[%clk 0:00:08.8]} 40. Qc7+ {[%clk 0:00:46]} 40...
Ne7 {[%clk 0:00:07.8]} 41. Ng4 {[%clk 0:00:36.2]} 41... Qd2+ {[%clk 0:00:07.6]}
42. Nf2 {[%clk 0:00:36.2]} 42... Qe3 {[%clk 0:00:08]} 43. b4 {[%clk 0:00:32.5]}
43... Qxa3 {[%clk 0:00:08.9]} 44. b5 {[%clk 0:00:31.1]} 44... Ke6 {[%clk
0:00:05.8]} 45. e5 {[%clk 0:00:27.4]} 45... Qe3 {[%clk 0:00:03.2]} 46. Qd6+
{[%clk 0:00:26.4]} 46... Kf7 {[%clk 0:00:03.8]} 47. Qf6+ {[%clk 0:00:26.1]}
47... Ke8 {[%clk 0:00:04.3]} 48. e6 {[%clk 0:00:25.3]} 48... Nc8 {[%clk
0:00:01.9]} 49. Qf7+ {[%clk 0:00:24.6]} 49... Kd8 {[%clk 0:00:02.5]} 50. Qd7#
{[%clk 0:00:25]} 1-0